[Event "ROU-chT 1st League 2019"]
[Site "Mamaia"]
[Date "2019.09.26"]
[Round "6.16"]
[White "Manea, Alexandru"]
[Black "Pop, Alexandru"]
[Result "1/2-1/2"]
[ECO "A46"]
[WhiteElo "2305"]
[BlackElo "2274"]
[Annotator "NA"]
[PlyCount "117"]
[EventDate "2019.09.21"]
[EventType "team-tourn"]
[EventCountry "ROU"]
[SourceTitle "playchess.com"]
[Source "ChessBase"]
[SourceQuality "1"]
[TimeControl "40/5400+30:1800+30"]

1. d4 {[%emt 0:01:07]} Nf6 {[%emt 0:00:00]} 2. Nf3 {[%emt 0:00:11]} d5 {[%emt 0:00:00]} 3. c4 {[%emt 0:02:22]} e6 {[%emt 0:00:06]} 4. g3 {[%emt 0:00:07]} dxc4 {[%emt 0:00:07]} 5. Qa4+ {[%emt 0:00:25]} Nbd7 {[%emt 0:00:12]} 6. Qxc4 {[%emt 0:00:08]} a6 {[%emt 0:00:07]} 7. Bg2 {[%emt 0:06:29]} b5 {[%emt 0:00:11]} 8. Qc2 {[%emt 0:01:59]} Bb7 {[%emt 0:00:09]} 9. O-O {[%emt 0:00:09]} c5 {[%emt 0:00:52]} 10. Be3 {[%emt 0:24:07]} Rc8 {[%emt 0:00:21]} 11. dxc5 {[%emt 0:00:12]} Bxc5 {[%emt 0:00:18]} 12. Bxc5 {[%emt 0:00:06]} Rxc5 {[%emt 0:00:15]} 13. Qb3 {[%emt 0:00:39]} O-O {[%emt 0:00:47]} 14. Nc3 {[%emt 0:01:40]} Qb6 {[%emt 0:02:04]} 15. Rad1 {[%emt 0:01:26]} Rfc8 {[%emt 0:02:31]} 16. Rd4 {[%emt 0:02:19]} Rc4 {[%emt 0:01:05]} 17. Rxc4 {[%emt 0:06:11]} Rxc4 {[%emt 0:00:12]} 18. Nd2 {[%emt 0:02:20]} Rd4 {[%emt 0:05:47]} 19. Nf3 {[%emt 0:00:23]} Bxf3 {[%emt 0:20:32]} 20. Bxf3 {[%emt 0:01:04]} Ne5 {[%emt 0:07:41]} 21. Bg2 {[%emt 0:31:34]} Nc4 {[%emt 0:07:46]} 22. Rd1 {[%emt 0:02:24]} Rxd1+ {[%emt 0:01:46]} 23. Nxd1 {[%emt 0:00:25]} Qd4 {[%emt 0:00:35]} 24. Qc2 {[%emt 0:00:05]} h5 {[%emt 0:13:57]} 25. Bf1 {[%emt 0:05:54]} Ne5 {[%emt 0:16:54]} 26. Bg2 {[%emt 0:01:50]} h4 {[%emt 0:05:57]} 27. Ne3 {[%emt 0:03:28]} hxg3 {[%emt 0:01:33]} 28. hxg3 {[%emt 0:00:01]} Nfg4 {[%emt 0:00:59]} 29. Nxg4 {[%emt 0:00:09]} Nxg4 {[%emt 0:00:16]} 30. e3 {[%emt 0:00:05]} Qb4 {[%emt 0:00:35]} 31. Qc3 {[%emt 0:01:04]} Qa4 {[%emt 0:04:19]} 32. Bf3 {[%emt 0:00:57]} Nf6 {[%emt 0:01:10]} 33. a3 {[%emt 0:00:05]} a5 {[%emt 0:00:59]} 34. Kg2 {[%emt 0:00:26]} b4 {[%emt 0:00:34]} 35. Qc4 {[%emt 0:00:47]} Nd7 {[%emt 0:01:38]} 36. Qc8+ {[%emt 0:03:10]} Nf8 {[%emt 0:00:06]} 37. Qc4 {[%emt 0:00:09]} Ng6 {[%emt 0:01:05]} 38. Be4 {[%emt 0:00:17]} Ne7 {[%emt 0:00:39]} 39. Qc7 {[%emt 0:01:16]} Ng6 {[%emt 0:02:04]} 40. Bc2 {[%emt 0:00:00]} Qb5 {[%emt 0:00:00]} 41. Bxg6 {[%emt 0:13:11]} fxg6 {[%emt 0:01:20]} 42. Qd8+ {[%emt 0:00:02]} Kf7 {[%emt 0:00:09]} 43. Qc7+ {[%emt 0:00:24]} Kg8 {[%emt 0:01:25]} 44. Qd6 {[%emt 0:01:12]} Kf7 {[%emt 0:00:39]} 45. axb4 {[%emt 0:00:11]} axb4 {[%emt 0:00:29]} 46. Qf4+ {[%emt 0:00:58]} Ke7 {[%emt 0:03:06]} 47. Qd4 {[%emt 0:01:23]} Kf7 {[%emt 0:01:57]} 48. e4 {[%emt 0:02:20]} b3 {[%emt 0:03:09]} 49. Kf3 {[%emt 0:02:32]} Kf8 {[%emt 0:02:09]} 50. Qd8+ {[%emt 0:00:46]} Kf7 {[%emt 0:00:05]} 51. Qc7+ {[%emt 0:00:08]} Kf8 {[%emt 0:00:15]} 52. Qd6+ {[%emt 0:00:34]} Kf7 {[%emt 0:00:07]} 53. Qd4 {[%emt 0:00:13]} Kf8 {[%emt 0:00:33]} 54. Kf4 {[%emt 0:02:00]} Kf7 {[%emt 0:00:19]} 55. Qc3 {[%emt 0:07:59]} Qb6 {[%emt 0:03:03]} 56. Qf3 {[%emt 0:01:10]} Qb5 {[%emt 0:04:23]} 57. Qc3 {[%emt 0:01:02]} Qb6 {[%emt 0:00:14]} 58. Kf3 {[%emt 0:00:30]} Qb5 {[%emt 0:00:20]} 59. Qd4 {[%emt 0:00:21]} 1/2-1/2

[Event "ROU-chT 1st League 2019"]
[Site "Mamaia"]
[Date "2019.09.26"]
[Round "6.17"]
[White "Daianu, Cristian-Clement"]
[Black "Szabo, Attila"]
[Result "1-0"]
[ECO "C50"]
[WhiteElo "2206"]
[BlackElo "2239"]
[Annotator "NA"]
[PlyCount "75"]
[EventDate "2019.09.21"]
[EventType "team-tourn"]
[EventCountry "ROU"]
[SourceTitle "playchess.com"]
[Source "ChessBase"]
[SourceQuality "1"]
[TimeControl "40/5400+30:1800+30"]

1. e4 {[%emt 0:04:26]} e5 {[%emt 0:01:16]} 2. Nf3 {[%emt 0:00:41]} Nc6 {[%emt 0:00:35]} 3. Bc4 {[%emt 0:00:09]} Be7 {[%emt 0:01:30]} 4. O-O {[%emt 0:05:18]} Nf6 {[%emt 0:00:30]} 5. d3 {[%emt 0:00:09]} O-O {[%emt 0:00:10]} 6. Re1 {[%emt 0:00:17]} d6 {[%emt 0:00:24]} 7. a4 {[%emt 0:00:16]} a6 {[%emt 0:11:08]} 8. a5 {[%emt 0:06:31]} Nd4 {[%emt 0:05:42]} 9. c3 {[%emt 0:13:34]} Nxf3+ {[%emt 0:05:18]} 10. Qxf3 {[%emt 0:01:17]} Bg4 {[%emt 0:06:45]} 11. Qg3 {[%emt 0:06:30]} Qc8 {[%emt 0:16:40]} 12. h3 {[%emt 0:13:09]} Be6 {[%emt 0:00:43]} 13. Bh6 {[%emt 0:01:27]} Nh5 {[%emt 0:01:30]} 14. Qf3 {[%emt 0:00:12]} Nf6 {[%emt 0:15:16]} 15. Bg5 {[%emt 0:03:20]} h6 {[%emt 0:07:09]} 16. Be3 {[%emt 0:20:07]} Qd7 {[%emt 0:06:47]} 17. Nd2 {[%emt 0:02:52]} d5 {[%emt 0:03:54]} 18. exd5 {[%emt 0:06:58]} Bxd5 {[%emt 0:04:12]} 19. Qg3 {[%emt 0:03:53]} Nh5 {[%emt 0:05:31]} 20. Qxe5 {[%emt 0:00:25]} Bxc4 {[%emt 0:04:09]} 21. Nxc4 {[%emt 0:03:34]} f5 {[%emt 0:00:41]} 22. Bxh6 {[%emt 0:03:14]} Bf6 {[%emt 0:00:22]} 23. Qe2 {[%emt 0:00:10]} Ng3 {[%emt 0:00:41]} 24. Qf3 {[%emt 0:01:52]} gxh6 {[%emt 0:00:25]} 25. Qxg3+ {[%emt 0:00:05]} Bg7 {[%emt 0:00:28]} 26. Re2 {[%emt 0:01:14]} Rad8 {[%emt 0:00:21]} 27. d4 {[%emt 0:00:27]} Qd5 {[%emt 0:00:14]} 28. Re7 {[%emt 0:00:45]} Rf7 {[%emt 0:00:08]} 29. Rxf7 {[%emt 0:00:06]} Qxf7 {[%emt 0:00:06]} 30. Ne5 {[%emt 0:00:30]} Qb3 {[%emt 0:00:12]} 31. Re1 {[%emt 0:00:27]} Qxb2 {[%emt 0:00:21]} 32. Nf7 {[%emt 0:00:33]} Rf8 {[%emt 0:00:16]} 33. Nxh6+ {[%emt 0:00:39]} Kh7 {[%emt 0:00:01]} 34. Re6 {[%emt 0:00:47]} Qb1+ {[%emt 0:01:06]} 35. Kh2 {[%emt 0:00:05]} f4 {[%emt 0:00:08]} 36. Qh4 {[%emt 0:00:11]} f3 {[%emt 0:02:11]} 37. Re7 {[%emt 0:00:43]} fxg2 {[%emt 0:01:06]} 38. Nf5+ {[%emt 0:00:13]} 1-0

[Event "ROU-chT 1st League 2019"]
[Site "Mamaia"]
[Date "2019.09.26"]
[Round "6.18"]
[White "Vasiesiu, Victor"]
[Black "Stanciu, Andreea-Briana"]
[Result "1-0"]
[ECO "C50"]
[WhiteElo "2251"]
[BlackElo "1884"]
[Annotator "NA"]
[PlyCount "115"]
[EventDate "2019.09.21"]
[EventType "team-tourn"]
[EventCountry "ROU"]
[SourceTitle "playchess.com"]
[Source "ChessBase"]
[SourceQuality "1"]
[TimeControl "40/5400+30:1800+30"]

1. e4 {[%emt 0:00:20]} e5 {[%emt 0:00:00]} 2. Nf3 {[%emt 0:01:03]} Nc6 {[%emt 0:00:00]} 3. Bc4 {[%emt 0:00:05]} Bc5 {[%emt 0:00:00]} 4. O-O {[%emt 0:00:06]} Nf6 {[%emt 0:00:01]} 5. d3 {[%emt 0:00:04]} O-O {[%emt 0:00:14]} 6. Bg5 {[%emt 0:00:03]} h6 {[%emt 0:00:27]} 7. Bh4 {[%emt 0:00:05]} Be7 {[%emt 0:00:35]} 8. Bg3 {[%emt 0:00:05]} d6 {[%emt 0:00:11]} 9. a4 {[%emt 0:00:04]} Be6 {[%emt 0:11:10]} 10. Nbd2 {[%emt 0:00:54]} Bxc4 {[%emt 0:13:55]} 11. Nxc4 {[%emt 0:00:14]} Nd7 {[%emt 0:01:04]} 12. Ne3 {[%emt 0:00:56]} Re8 {[%emt 0:01:56]} 13. c3 {[%emt 0:05:31]} Bf8 {[%emt 0:03:41]} 14. b4 {[%emt 0:01:48]} a5 {[%emt 0:08:37]} 15. Qb3 {[%emt 0:07:38]} b6 {[%emt 0:07:38]} 16. Qc4 {[%emt 0:04:36]} Ne7 {[%emt 0:02:29]} 17. Nh4 {[%emt 0:00:26]} Nf6 {[%emt 0:05:26]} 18. Qb3 {[%emt 0:07:04]} Qd7 {[%emt 0:19:12]} 19. f4 {[%emt 0:00:42]} exf4 {[%emt 0:00:10]} 20. Bxf4 {[%emt 0:08:29]} Qe6 {[%emt 0:01:44]} 21. Qxe6 {[%emt 0:14:20]} fxe6 {[%emt 0:00:04]} 22. Bg3 {[%emt 0:03:26]} Nh5 {[%emt 0:04:03]} 23. Be1 {[%emt 0:08:18]} g5 {[%emt 0:01:14]} 24. Nf3 {[%emt 0:00:31]} Nf4 {[%emt 0:03:21]} 25. d4 {[%emt 0:01:33]} Bg7 {[%emt 0:04:40]} 26. b5 {[%emt 0:00:14]} Rf8 {[%emt 0:01:33]} 27. Ra2 {[%emt 0:03:42]} Neg6 {[%emt 0:02:48]} 28. g3 {[%emt 0:11:12]} Nh5 {[%emt 0:02:08]} 29. Re2 {[%emt 0:05:44]} Nf6 {[%emt 0:01:37]} 30. Nc4 {[%emt 0:00:02]} g4 {[%emt 0:01:37]} 31. Nfd2 {[%emt 0:00:30]} Nh7 {[%emt 0:00:38]} 32. Ne3 {[%emt 0:02:23]} h5 {[%emt 0:00:29]} 33. Rxf8+ {[%emt 0:02:04]} Rxf8 {[%emt 0:00:06]} 34. Rf2 {[%emt 0:00:04]} Re8 {[%emt 0:00:17]} 35. Kf1 {[%emt 0:01:01]} Ng5 {[%emt 0:01:36]} 36. Ke2 {[%emt 0:00:38]} Nh3 {[%emt 0:00:28]} 37. Rf1 {[%emt 0:00:20]} Bh6 {[%emt 0:00:54]} 38. Kd3 {[%emt 0:02:19]} Rf8 {[%emt 0:01:47]} 39. Rxf8+ {[%emt 0:01:32]} Kxf8 {[%emt 0:00:04]} 40. Nb3 {[%emt 0:00:00]} Ng1 {[%emt 0:00:00]} 41. Nf1 {[%emt 0:06:17]} Nf3 {[%emt 0:05:48]} 42. Bf2 {[%emt 0:00:02]} Ke7 {[%emt 0:04:14]} 43. Ke2 {[%emt 0:00:05]} Ng5 {[%emt 0:07:42]} 44. Nfd2 {[%emt 0:00:07]} Nh3 {[%emt 0:02:20]} 45. Be1 {[%emt 0:00:03]} d5 {[%emt 0:03:15]} 46. Kd3 {[%emt 0:01:17]} Kd7 {[%emt 0:01:45]} 47. Nf1 {[%emt 0:14:52]} Ng1 {[%emt 0:01:42]} 48. Nbd2 {[%emt 0:00:26]} c6 {[%emt 0:01:11]} 49. Bf2 {[%emt 0:01:53]} Nh3 {[%emt 0:00:05]} 50. Be3 {[%emt 0:00:06]} Bf8 {[%emt 0:01:26]} 51. bxc6+ {[%emt 0:01:47]} Kxc6 {[%emt 0:00:06]} 52. c4 {[%emt 0:00:03]} Bb4 {[%emt 0:01:35]} 53. Nb3 {[%emt 0:00:05]} Ne7 {[%emt 0:04:41]} 54. Nfd2 {[%emt 0:00:24]} Nc8 {[%emt 0:00:57]} 55. cxd5+ {[%emt 0:02:01]} exd5 {[%emt 0:00:05]} 56. exd5+ {[%emt 0:00:05]} Kxd5 {[%emt 0:00:05]} 57. Ne4 {[%emt 0:00:11]} Be7 {[%emt 0:01:21]} 58. Nc3+ {[%emt 0:01:38] Ke5 d5 Bd8 Nd2 Kf5 Nc4 h4 Ne4 Be7 Kd4 Bd8 d6 hxg3 Kd5} 1-0

[Event "ROU-chT 1st League 2019"]
[Site "Mamaia"]
[Date "2019.09.26"]
[Round "6.19"]
[White "Doncea, Vladimir"]
[Black "Tarlev, Konstantin"]
[Result "0-1"]
[ECO "A37"]
[WhiteElo "2341"]
[BlackElo "2559"]
[Annotator "ChessBase"]
[PlyCount "134"]
[EventDate "2019.09.21"]
[EventType "team-tourn"]
[EventCountry "ROU"]
[SourceTitle "playchess.com"]
[Source "ChessBase"]
[SourceQuality "1"]
[TimeControl "40/5400+30:1800+30"]

1. Nf3 {[%emt 0:01:24]} c5 {[%emt 0:00:00]} 2. g3 {[%emt 0:00:28]} g6 {[%emt 0:00:14]} 3. Bg2 {[%emt 0:00:15]} Bg7 {[%emt 0:00:05]} 4. c4 {[%emt 0:00:46]} Nc6 {[%emt 0:00:17]} 5. Nc3 {[%emt 0:00:10]} e5 {[%emt 0:03:12]} 6. O-O {[%emt 0:02:04]} Nge7 {[%emt 0:00:56]} 7. a3 {[%emt 0:00:09]} d6 {[%emt 0:08:05]} 8. d3 {[%emt 0:02:43]} O-O {[%emt 0:01:55]} 9. Rb1 {[%emt 0:00:56]} a5 {[%emt 0:06:10]} 10. Ne1 {[%emt 0:10:20]} Be6 {[%emt 0:09:20]} 11. Nc2 {[%emt 0:00:11]} d5 {[%emt 0:03:20]} 12. cxd5 {[%emt 0:00:10]} Nxd5 {[%emt 0:00:02]} 13. Ne3 {[%emt 0:00:23]} Nde7 {[%emt 0:03:19]} 14. Ne4 {[%emt 0:07:57]} b6 {[%emt 0:01:02]} 15. Ng5 {[%emt 0:01:57]} Bd7 {[%emt 0:02:44]} 16. f4 {[%emt 0:08:08]} exf4 {[%emt 0:01:41]} 17. gxf4 {[%emt 0:03:55]} h6 {[%emt 0:03:22]} 18. Nf3 {[%emt 0:08:51]} b5 {[%emt 0:07:50]} 19. a4 {[%emt 0:11:28]} bxa4 {[%emt 0:02:31]} 20. Nc4 {[%emt 0:01:29]} Rb8 {[%emt 0:05:57]} 21. Qxa4 {[%emt 0:01:35]} Nd4 {[%emt 0:05:18]} 22. Qd1 {[%emt 0:01:51]} Nec6 {[%emt 0:07:32]} 23. Bd2 {[%emt 0:08:23]} Re8 {[%emt 0:07:10]} 24. e3 {[%emt 0:04:28]} Nxf3+ {[%emt 0:02:02]} 25. Qxf3 {[%emt 0:04:22]} Nb4 {[%emt 0:01:01]} 26. Bc3 {[%emt 0:04:56]} Bc6 {[%emt 0:03:04]} 27. e4 {[%emt 0:02:52]} Nxd3 {[%emt 0:04:27]} 28. Qe3 {[%emt 0:01:37]} Bd4 {[%emt 0:05:11]} 29. Bxd4 {[%emt 0:00:08]} Qxd4 {[%emt 0:00:01]} 30. Qxd4 {[%emt 0:00:20]} cxd4 {[%emt 0:00:01]} 31. e5 {[%emt 0:03:59]} Bxg2 {[%emt 0:00:18]} 32. Kxg2 {[%emt 0:00:03]} Rec8 {[%emt 0:00:39]} 33. Nxa5 {[%emt 0:01:48]} Rc2+ {[%emt 0:00:17]} 34. Kg3 {[%emt 0:00:06]} Rbxb2 {[%emt 0:04:41]} 35. Rxb2 {[%emt 0:02:50]} Nxb2 {[%emt 0:00:04]} 36. Nb3 {[%emt 0:00:57]} d3 {[%emt 0:00:34]} 37. Rf2 {[%emt 0:02:05]} Nc4 {[%emt 0:03:26]} 38. Rxc2 {[%emt 0:00:19]} dxc2 {[%emt 0:00:01]} 39. Nc1 {[%emt 0:00:16]} Kg7 {[%emt 0:01:04]} 40. Kf3 {[%emt 0:00:00]} g5 {[%emt 0:00:00]} 41. Ke4 {[%emt 0:04:48]} gxf4 {[%emt 0:02:43]} 42. Kxf4 {[%emt 0:03:49]} Kg6 {[%emt 0:00:06]} 43. Ke4 {[%emt 0:03:44]} Kg5 {[%emt 0:00:38]} 44. Kd3 {[%emt 0:00:09]} Nxe5+ {[%emt 0:00:54]} 45. Kxc2 {[%emt 0:00:07]} Ng4 {[%emt 0:01:18]} 46. Kd2 {[%emt 0:00:08]} Nxh2 {[%emt 0:00:05]} 47. Ke3 {[%emt 0:00:05]} Ng4+ {[%emt 0:00:04]} 48. Kf3 {[%emt 0:00:03]} Ne5+ {[%emt 0:00:07]} 49. Kg3 {[%emt 0:00:17]} f5 {[%emt 0:00:20]} 50. Ne2 {[%emt 0:00:23]} Ng6 {[%emt 0:00:32]} 51. Nd4 {[%emt 0:00:09]} f4+ {[%emt 0:00:30]} 52. Kh3 {[%emt 0:00:16]} Ne5 {[%emt 0:00:57]} 53. Ne6+ {[%emt 0:02:32]} Kf5 {[%emt 0:00:04]} 54. Nc5 {[%emt 0:00:05]} Ng4 {[%emt 0:07:16]} 55. Nd3 {[%emt 0:00:23]} Nf6 {[%emt 0:00:19]} 56. Nf2 {[%emt 0:00:08]} Ne4 {[%emt 0:02:16]} 57. Ng4 {[%emt 0:03:37]} h5 {[%emt 0:00:46]} 58. Nh2 {[%emt 0:00:48]} Ng5+ {[%emt 0:01:01]} 59. Kg2 {[%emt 0:01:21]} Ke4 {[%emt 0:04:20]} 60. Kf2 {[%emt 0:00:23]} Nf7 {[%emt 0:01:17]} 61. Nf3 {[%emt 0:02:17]} Ne5 {[%emt 0:00:07]} 62. Nd2+ {[%emt 0:02:48]} Kf5 {[%emt 0:00:19]} 63. Nf1 {[%emt 0:00:38]} Ng4+ {[%emt 0:01:10]} 64. Kf3 {[%emt 0:00:14]} h4 {[%emt 0:02:53]} 65. Nd2 {[%emt 0:00:38]} h3 {[%emt 0:00:23]} 66. Nf1 {[%emt 0:00:08]} h2 {[%emt 0:01:11]} 67. Kg2 {[%emt 0:00:07]} Ne3+ 0-1

[Event "ROU-chT 1st League 2019"]
[Site "Mamaia"]
[Date "2019.09.26"]
[Round "6.20"]
[White "Morozov, Nichita"]
[Black "Ciorgovean, Iustin"]
[Result "1/2-1/2"]
[ECO "A06"]
[WhiteElo "2394"]
[BlackElo "2331"]
[Annotator "NA"]
[PlyCount "83"]
[EventDate "2019.09.21"]
[EventType "team-tourn"]
[EventCountry "ROU"]
[SourceTitle "playchess.com"]
[Source "ChessBase"]
[SourceQuality "1"]
[TimeControl "40/5400+30:1800+30"]

1. Nf3 {[%emt 0:00:15]} d5 {[%emt 0:00:00]} 2. g3 {[%emt 0:00:04]} g6 {[%emt 0:00:00]} 3. c4 {[%emt 0:02:20]} dxc4 {[%emt 0:00:23]} 4. Qa4+ {[%emt 0:00:26]} Nc6 {[%emt 0:00:26]} 5. Bg2 {[%emt 0:05:18]} Bg7 {[%emt 0:01:44]} 6. Na3 {[%emt 0:02:29]} Nh6 {[%emt 0:03:59]} 7. Nxc4 {[%emt 0:03:47]} O-O {[%emt 0:00:30]} 8. d3 {[%emt 0:00:22]} Nf5 {[%emt 0:02:35]} 9. Bf4 {[%emt 0:04:13]} f6 {[%emt 0:11:51]} 10. Ne3 {[%emt 0:11:48]} Nh6 {[%emt 0:14:44]} 11. Nc2 {[%emt 0:03:09]} e5 {[%emt 0:00:30]} 12. Bd2 {[%emt 0:00:06]} Nf5 {[%emt 0:04:05]} 13. b4 {[%emt 0:02:50]} a6 {[%emt 0:03:27]} 14. Qb3+ {[%emt 0:01:39]} Kh8 {[%emt 0:00:12]} 15. O-O {[%emt 0:01:08]} Re8 {[%emt 0:00:18]} 16. a4 {[%emt 0:06:06]} Ncd4 {[%emt 0:03:43]} 17. Ncxd4 {[%emt 0:01:33]} Nxd4 {[%emt 0:03:38]} 18. Nxd4 {[%emt 0:02:40]} Qxd4 {[%emt 0:01:36]} 19. Bc3 {[%emt 0:01:59]} Qd6 {[%emt 0:00:36]} 20. Qb2 {[%emt 0:00:11]} c6 {[%emt 0:01:12]} 21. Rad1 {[%emt 0:06:06]} Be6 {[%emt 0:13:26]} 22. d4 {[%emt 0:02:28]} exd4 {[%emt 0:00:04]} 23. Rxd4 {[%emt 0:01:54]} Qe7 {[%emt 0:00:21]} 24. Rfd1 {[%emt 0:00:45]} Rad8 {[%emt 0:03:14]} 25. Qa1 {[%emt 0:10:37]} Rxd4 {[%emt 0:01:03]} 26. Rxd4 {[%emt 0:00:48]} Rd8 {[%emt 0:01:20]} 27. Rxd8+ {[%emt 0:02:02]} Qxd8 {[%emt 0:01:30]} 28. Be4 {[%emt 0:02:26]} Kg8 {[%emt 0:04:27]} 29. Bd3 {[%emt 0:00:53]} Kf7 {[%emt 0:00:58]} 30. h4 {[%emt 0:00:27]} Qd7 {[%emt 0:02:09]} 31. Qb1 {[%emt 0:01:35]} Bf5 {[%emt 0:02:24]} 32. Bc4+ {[%emt 0:00:30]} Be6 {[%emt 0:00:06]} 33. Bd3 {[%emt 0:00:10]} Bf5 {[%emt 0:00:22]} 34. Qb3+ {[%emt 0:01:22]} Be6 {[%emt 0:00:25]} 35. Qc2 {[%emt 0:00:36]} Bf5 {[%emt 0:02:03]} 36. Qa2+ {[%emt 0:03:55]} Be6 {[%emt 0:00:15]} 37. Qd2 {[%emt 0:00:31]} h5 {[%emt 0:04:29]} 38. Qf4 {[%emt 0:01:02]} Bf5 {[%emt 0:02:02]} 39. Bc4+ {[%emt 0:02:38]} Be6 {[%emt 0:00:12]} 40. Bd3 {[%emt 0:00:00]} Bf5 {[%emt 0:00:00]} 41. Bc4+ {[%emt 0:02:11]} Be6 {[%emt 0:01:54]} 42. Bd3 {[%emt 0:00:04]} 1/2-1/2

[Event "ROU-chT 1st League 2019"]
[Site "Mamaia"]
[Date "2019.09.26"]
[Round "6.21"]
[White "Barzanu, Iulian"]
[Black "Ionescu, Constantin"]
[Result "1/2-1/2"]
[ECO "B43"]
[WhiteElo "2187"]
[BlackElo "2426"]
[Annotator "NA"]
[PlyCount "61"]
[EventDate "2019.09.21"]
[EventType "team-tourn"]
[EventCountry "ROU"]
[SourceTitle "playchess.com"]
[Source "ChessBase"]
[SourceQuality "1"]
[TimeControl "40/5400+30:1800+30"]

1. e4 {[%emt 0:00:00]} c5 {[%emt 0:00:00]} 2. Nf3 {[%emt 0:00:08]} e6 {[%emt 0:00:07]} 3. d4 {[%emt 0:00:12]} cxd4 {[%emt 0:00:09]} 4. Nxd4 {[%emt 0:00:10]} a6 {[%emt 0:00:06]} 5. Nc3 {[%emt 0:00:31]} b5 {[%emt 0:00:15]} 6. Bd3 {[%emt 0:01:36]} Bb7 {[%emt 0:00:28]} 7. O-O {[%emt 0:00:44]} Nc6 {[%emt 0:01:09]} 8. Nxc6 {[%emt 0:00:44]} Bxc6 {[%emt 0:00:09]} 9. Re1 {[%emt 0:00:44]} Qb8 {[%emt 0:01:31]} 10. Qe2 {[%emt 0:10:54]} Bd6 {[%emt 0:02:11]} 11. e5 {[%emt 0:02:07]} Bc7 {[%emt 0:00:48]} 12. f4 {[%emt 0:15:33]} f5 {[%emt 0:05:16]} 13. Qh5+ {[%emt 0:11:23]} g6 {[%emt 0:02:11]} 14. Qh3 {[%emt 0:02:02]} Kf7 {[%emt 0:02:48]} 15. Be3 {[%emt 0:03:23]} Kg7 {[%emt 0:00:33]} 16. a4 {[%emt 0:08:10]} b4 {[%emt 0:04:12]} 17. Ne2 {[%emt 0:00:43]} Nh6 {[%emt 0:00:44]} 18. Qg3 {[%emt 0:07:23]} Rc8 {[%emt 0:18:50]} 19. h3 {[%emt 0:01:09]} Bb6 {[%emt 0:00:56]} 20. Nd4 {[%emt 0:01:22]} Bd5 {[%emt 0:00:34]} 21. Qf2 {[%emt 0:01:08]} Bd8 {[%emt 0:01:37]} 22. Nb3 {[%emt 0:01:26]} Rc6 {[%emt 0:05:44]} 23. Rad1 {[%emt 0:06:01]} Nf7 {[%emt 0:03:08]} 24. Rd2 Be7 {[%emt 0:03:52]} 25. Be2 {[%emt 0:07:25]} Qc8 {[%emt 0:03:23]} 26. Bf3 {[%emt 0:01:48]} Bxf3 {[%emt 0:00:32]} 27. Qxf3 {[%emt 0:00:07]} Rb8 {[%emt 0:01:23]} 28. Red1 {[%emt 0:00:38]} d5 {[%emt 0:04:27]} 29. exd6 {[%emt 0:01:13]} Rxd6 {[%emt 0:00:13]} 30. Rxd6 {[%emt 0:13:09]} Bxd6 {[%emt 0:07:33]} 31. Nd4 1/2-1/2